bitfinex-derivatives/quotes_ETHF0:USTF0_20250701
["timestamp","ask_amount","ask_price","bid_price","bid_amount"]
[1751407522845,26.36292,2409.5,2409.4,4.60825]
[1751407523051,26.36292,2409.5,2409.4,3.7783]
[1751407523352,26.36292,2409.5,2409.4,4.60825]
[1751407523553,26.36292,2409.5,2409.4,3.7783]
[1751407524059,26.36292,2409.5,2409.4,3.0]
[1751407524352,0.83009,2409.0,2408.9,8.18697326]
[1751407524548,0.83009,2409.0,2408.9,2.39411]
[1751407524848,0.83009,2409.0,2408.9,1.564]
[1751407525154,26.40008,2409.1,2409.0,0.83009]
[1751407526047,25.57,2409.1,2409.0,0.83009]
[1751407528955,25.57,2409.1,2409.0,3.83009]
[1751407529552,25.57,2409.1,2409.0,5.21389]
[1751407531047,26.40006,2409.1,2409.0,3.83009]
[1751407532156,25.57,2409.1,2409.0,3.83009]
[1751407533761,37.427,2409.3,2409.2,0.83001]
[1751407534851,37.427,2409.3,2409.2,3.83001]
[1751407536654,38.25699,2409.3,2409.2,3.83001]
[1751407536861,25.523,2409.4,2409.2,3.0]
[1751407537048,26.35298,2409.4,2409.3,0.82999]
[1751407537254,11.887,2409.5,2409.4,0.82995]
[1751407537559,38.23792,2409.5,2409.4,0.82995]
[1751407538060,38.23793,2409.5,2409.4,0.82995]
[1751407538661,11.887,2409.5,2409.4,0.82995]
[1751407538854,0.82983,2409.8,2409.4,3.0]
[1751407539057,2.79995,2410.0,2409.8,0.82982]
[1751407539058,11.888,2409.9,2409.8,0.82982]
[1751407539258,38.25478,2409.9,2409.8,0.82982]
[1751407539661,0.82982,2409.8,2409.7,1.58874]
[1751407539853,0.82982,2409.8,2409.7,0.7589]
[1751407540355,0.82982,2409.8,2409.7,1.58875]
[1751407540560,0.82982,2409.8,2409.7,0.7589]
[1751407541062,0.82982,2409.8,2409.7,3.7589]
[1751407541761,0.82982,2409.8,2409.7,3.0]
[1751407542063,2.20822,2409.8,2409.7,3.0]
[1751407545163,2.20822,2409.8,2409.7,3.82985]
[1751407545554,2.20822,2409.8,2409.7,3.0]
[1751407555669,0.82992,2409.5,2409.4,0.7834]
[1751407555871,26.30892,2409.5,2409.4,0.7834]
[1751407556572,0.82999,2409.3,2409.2,0.7759]
[1751407556770,26.29799,2409.3,2409.2,0.7316]
[1751407557567,26.29799,2409.3,2409.2,3.7316]
[1751407557763,26.29799,2409.3,2409.2,4.56162]
[1751407558071,26.29799,2409.3,2409.2,3.0]
[1751407558572,28.41309,2409.3,2409.2,3.0]
[1751407560273,28.41309,2409.3,2408.7,3.98591703]
[1751407560274,0.83016,2408.8,2408.7,3.98591703]
[1751407561065,0.83016,2408.8,2408.7,0.7316]
[1751407561474,0.83016,2408.8,2408.7,3.7316]
[1751407562371,0.83016,2408.8,2408.7,3.0]
[1751407562372,3.25430703,2408.8,2408.7,3.0]
[1751407562573,4.65080703,2408.8,2408.7,3.0]
[1751407563872,0.83023,2408.6,2408.5,1.44396326]
[1751407564080,26.28423,2408.6,2408.5,1.44396326]
[1751407564384,0.8303,2408.4,2408.3,1.56621]
[1751407564877,0.8303,2408.4,2408.3,0.7359]
[1751407565086,0.83033,2408.3,2408.2,3.25448703]
[1751407565279,2.42414703,2408.4,2407.8,2.42414703]
[1751407565480,0.83044,2408.0,2407.9,0.711]
[1751407565674,0.83044,2408.0,2407.9,1.54147]
[1751407565877,26.29444,2408.0,2407.9,0.711]
[1751407566382,26.29444,2408.0,2407.9,1.54147]
[1751407566585,26.29444,2408.0,2407.9,3.711]
[1751407567181,26.29444,2408.0,2407.9,4.4809]
[1751407568688,0.83044,2408.0,2407.9,6.19404703]
[1751407568885,26.28944,2408.0,2407.9,6.19404703]
[1751407569383,25.453,2408.0,2407.9,6.19404703]
[1751407569586,0.83027,2408.5,2408.4,0.83029]
[1751407569782,26.28727,2408.5,2408.4,3.25443703]
[1751407569984,26.28727,2408.5,2408.4,2.42414703]
[1751407570491,26.28727,2408.5,2408.4,3.25444703]
[1751407570885,26.28727,2408.5,2408.4,6.25444703]
[1751407571790,26.28727,2408.5,2408.4,5.42414703]
[1751407572680,26.28727,2408.5,2408.4,3.0]
[1751407573986,27.62337,2408.5,2408.4,3.0]
[1751407574386,33.33367,2408.5,2408.4,3.0]
[1751407575586,0.83044,2408.0,2407.9,0.83047]
[1751407575793,26.29044,2408.0,2407.9,0.83047]
[1751407578086,26.29044,2408.0,2407.9,3.83047]
[1751407579094,26.29044,2408.0,2407.9,3.0]
[1751407580293,28.48064,2408.0,2407.9,3.0]
[1751407587797,34.25464,2408.0,2407.9,2.0992]
[1751407587997,0.83068,2407.3,2407.2,5.77351586]
[1751407588198,0.83075,2407.1,2407.0,0.83077]
[1751407588394,0.83078,2407.0,2406.9,8.05512586]
[1751407588595,0.83078,2407.0,2406.9,7.22431586]
[1751407588994,0.83078,2407.0,2406.9,5.77351586]
[1751407589195,0.83085,2406.8,2406.7,5.77351586]
[1751407589497,0.83085,2406.8,2406.4,1.5719]
[1751407589498,0.83092,2406.6,2406.5,5.77351586]
[1751407589797,26.28192,2406.6,2406.5,5.77351586]
[1751407589998,0.83095,2406.5,2406.4,7.34541586]
[1751407590700,0.83095,2406.5,2406.4,10.34541586]
[1751407591203,0.83095,2406.5,2406.4,11.17640586]
[1751407591498,0.83095,2406.5,2406.4,5.40289]
[1751407591900,0.83095,2406.5,2406.4,4.5719]
[1751407595105,0.83095,2406.5,2406.4,3.0]
[1751407595496,2.19905,2406.5,2406.4,3.0]
[1751407599100,39.49905,2406.5,2406.4,3.0]
[1751407601404,39.50005,2406.5,2406.4,3.0]
[1751407603408,2.19905,2406.5,2406.4,3.0]
[1751407603608,39.50205,2406.5,2406.4,3.0]
[1751407606613,41.92619703,2406.5,2406.4,3.0]
[1751407607611,42.66219703,2406.5,2406.4,3.0]
[1751407609607,47.66219703,2406.5,2406.4,1.84043]
[1751407609813,47.66219703,2406.5,2406.4,1e-05]
[1751407610010,47.66219703,2406.5,2405.3,0.83134]
[1751407610011,0.83138,2405.4,2405.3,0.83134]
[1751407610308,0.8314,2405.2,2405.1,2.20802]
[1751407610608,25.463,2405.2,2405.1,0.83144]
[1751407610808,0.83147,2405.1,2405.0,2.42414703]
[1751407611405,0.83147,2405.1,2405.0,4.78048703]
[1751407611707,0.83147,2405.1,2405.0,7.78048703]
[1751407613405,0.83147,2405.1,2405.0,4.5249]
[1751407615508,2.07826,2405.5,2405.0,6.94904703]
[1751407615711,0.83142,2405.2,2405.1,0.83141]
[1751407615913,26.29842,2405.2,2405.1,0.83141]
[1751407617012,0.8314,2405.3,2405.2,0.83137]
[1751407617309,38.1404,2405.3,2405.2,0.83137]
[1751407618711,0.8314,2405.2,2405.1,3.83142]
[1751407619008,0.8314,2405.2,2405.1,3.0]
[1751407619214,3.25554703,2405.2,2405.1,3.0]
[1751407619408,4.67054703,2405.2,2405.1,3.0]
[1751407620110,10.43184703,2405.2,2405.1,1.97951]
[1751407620318,0.83161,2404.6,2404.5,1.4866]
[1751407620518,38.14161,2404.6,2404.5,1.4866]
[1751407621012,38.14161,2404.6,2404.5,2.31825]
[1751407621509,38.14161,2404.6,2404.5,5.31825]
[1751407622712,38.14161,2404.6,2404.5,6.75675]
[1751407622915,59.843,2404.8,2404.7,0.83158]
[1751407623117,71.684,2404.8,2404.7,0.83158]
[1751407623308,97.98854,2404.8,2404.7,0.83158]
[1751407623618,97.98854,2404.8,2404.7,2.27008]
[1751407624215,97.157,2404.8,2404.7,2.27008]
[1751407624410,97.98854,2404.8,2404.7,2.27008]
[1751407624819,97.98854,2404.8,2404.7,5.27008]
[1751407625316,97.98854,2404.8,2404.7,6.04968]
[1751407625921,60.67454,2404.8,2404.7,6.04968]
[1751407626122,97.158,2404.8,2404.7,6.04968]
[1751407626514,97.98954,2404.8,2404.7,6.04968]
[1751407627122,97.158,2404.8,2404.7,6.04968]
[1751407628722,97.158,2404.8,2404.7,5.27008]
[1751407628921,97.158,2404.8,2404.7,6.02008]
[1751407631121,97.158,2404.8,2404.7,4.58158]
[1751407633326,97.98954,2404.8,2404.7,4.58158]
[1751407636726,97.98954,2404.8,2404.7,3.83158]
[1751407637723,100.41368703,2404.8,2404.7,3.0]
[1751407638419,101.81848703,2404.8,2404.7,3.0]
[1751407640324,102.55928703,2404.8,2404.7,3.0]
[1751407640725,107.55928703,2404.8,2404.7,3.0]
[1751407640928,107.55928703,2404.8,2404.7,0.32115]
[1751407641227,0.83189,2403.9,2403.8,0.83186]
[1751407641428,26.30689,2403.9,2403.8,0.83186]
[1751407642328,25.475,2403.9,2403.8,0.83186]
[1751407642525,25.475,2403.9,2403.8,6.11146]
[1751407642929,26.30685,2403.9,2403.8,6.11146]
[1751407644221,28.73099703,2403.9,2403.8,5.2796]
[1751407644525,27.73495,2403.9,2403.8,5.2796]
[1751407644725,26.9031,2403.9,2403.8,5.2796]
[1751407644931,37.319,2403.9,2403.8,5.2796]
[1751407645333,37.319,2403.9,2403.8,6.11147]
[1751407645525,1.4281,2404.3,2403.8,8.47334703]
[1751407645732,11.842,2404.2,2404.1,3.25591703]
[1751407646028,37.319,2404.2,2404.1,3.25593703]
[1751407647334,37.319,2404.2,2404.1,8.53553703]
[1751407649038,38.15075,2404.2,2404.1,8.53553703]
[1751407649225,37.319,2404.2,2404.1,8.53553703]
[1751407655043,38.15075,2404.2,2404.1,8.53553703]
[1751407655640,38.15075,2404.2,2404.1,5.2796]
[1751407655842,40.57489703,2404.2,2404.1,5.2796]
[1751407656344,41.92929703,2404.2,2404.1,5.2796]
[1751407657942,14.02815,2404.2,2404.1,5.2796]
[1751407658143,39.50615,2404.2,2404.1,5.2796]
[1751407659546,39.50615,2404.2,2404.1,6.11139]
[1751407660138,39.50615,2404.2,2404.1,5.2796]
[1751407662951,41.93029703,2404.2,2404.1,5.2796]
[1751407678861,41.92829703,2404.2,2404.1,5.2796]
[1751407679059,0.83175,2404.2,2404.1,6.11139]
[1751407679262,26.30775,2404.2,2404.1,5.2796]
[1751407681365,27.73205,2404.2,2404.1,5.2796]
[1751407681863,30.15619703,2404.2,2404.1,5.2796]
[1751407682066,30.92389703,2404.2,2404.1,5.2796]
[1751407682469,0.83196,2403.7,2403.6,0.83194]
[1751407682669,26.30696,2403.7,2403.6,2.24574]
[1751407683570,0.83196,2403.6,2403.5,0.7751]
[1751407684567,0.83196,2403.6,2403.5,6.0547]
[1751407685271,2.23456,2403.6,2403.5,6.0547]
[1751407685875,2.23456,2403.6,2403.5,5.2796]
[1751407689474,0.83199,2403.5,2403.4,2.71e-06]
[1751407689674,28.73113703,2403.5,2403.4,2.71e-06]
[1751407690577,28.73113703,2403.5,2403.4,5.27960271]
[1751407691473,26.30699,2403.5,2403.4,5.27960271]
[1751407693180,31.30699,2403.5,2403.4,2.96552271]
[1751407693478,32.68149,2403.5,2403.4,0.12529271]
[1751407693670,32.68149,2403.5,2403.4,2.71e-06]
[1751407695279,32.68149,2403.5,2402.4,0.83235]
[1751407695280,4.15,2403.4,2402.4,5.75989211]
[1751407695474,0.83234,2402.5,2402.4,5.75989211]
[1751407695670,37.321,2402.5,2402.3,5.75989211]
[1751407695876,0.83237,2402.4,2402.3,5.75989211]
[1751407696482,2.08103,2402.3,2401.1,2.42414703]
[1751407696678,3.25676703,2401.7,2401.6,0.7625]
[1751407696980,40.59576703,2401.7,2401.6,0.7625]
[1751407697484,100.50476703,2401.7,2401.6,0.7625]
[1751407697786,0.83279,2401.2,2401.1,2.24132]
[1751407697975,25.44966171,2401.2,2401.1,2.24132]
[1751407698770,37.30066171,2401.2,2401.1,2.24132]
[1751407698976,38.13345171,2401.2,2401.1,1.4085]
[1751407699381,37.347,2401.2,2401.1,1.4085]
[1751407699584,37.347,2401.2,2401.1,2.24132]
[1751407699777,0.83272,2401.4,2401.3,0.83275]
[1751407699978,59.909,2401.7,2401.2,2.42414703]
[1751407700178,38.18268,2401.6,2401.5,0.83268]
[1751407700381,0.8327,2401.5,2401.4,0.8327]
[1751407700582,0.83272,2401.4,2401.3,2.25733]
[1751407700781,25.496,2401.4,2401.3,2.25733]
[1751407701583,59.909,2401.7,2401.6,0.83265]
[1751407701584,71.762,2401.7,2401.6,0.83265]
[1751407701784,97.278,2401.7,2401.6,0.83265]
[1751407701985,98.11062,2401.7,2401.6,0.83265]
[1751407702286,0.83265,2401.6,2401.5,2.93456]
[1751407702675,98.11064,2401.7,2401.6,0.83265]
[1751407702978,97.276,2401.7,2401.6,2.19955]
[1751407703183,0.83248,2402.1,2402.0,0.8325]
[1751407703380,38.2345,2402.1,2402.0,0.8325]
[1751407704082,12.6865,2402.1,2402.0,0.8325]
[1751407704284,38.2335,2402.1,2402.0,0.7703]
[1751407704784,38.2325,2402.1,2402.0,1.60281]
[1751407704981,0.83242,2402.3,2402.2,0.83241]
[1751407705182,38.24441,2402.3,2402.2,0.83241]
[1751407705385,0.83244,2402.2,2402.1,3.07057]
[1751407705585,0.83244,2402.2,2402.1,0.8029]
[1751407705886,0.83248,2402.1,2402.0,0.7703]
[1751407706081,26.40348,2402.1,2402.0,0.7703]
[1751407707091,0.83255,2401.9,2401.8,0.8029]
[1751407707282,26.40055,2401.9,2401.8,0.8029]
[1751407707483,0.83265,2401.6,2401.5,2.1999]
[1751407707782,38.25465,2401.6,2401.5,3.03259]
[1751407708189,38.25465,2401.6,2401.5,0.7647]
[1751407708487,2.0818,2401.5,2401.0,1.3915]
[1751407708684,0.83282,2401.1,2401.0,3.73153]
[1751407709081,71.781,2401.6,2401.4,0.83269]
[1751407709384,0.83275,2401.4,2401.3,0.83273]
[1751407710681,38.26371,2401.5,2401.4,0.83272]
[1751407711190,37.431,2401.5,2401.4,0.83272]
[1751407711385,97.364,2401.6,2401.5,0.83269]
[1751407711592,98.19665,2401.6,2401.5,0.83269]
[1751407714199,0.83272,2401.5,2401.4,0.83269]
[1751407714594,0.83272,2401.4,2401.3,1.4475]
[1751407714802,0.83272,2401.4,2401.1,0.83281]
[1751407714803,0.83282,2401.2,2401.1,0.83281]
[1751407715097,26.40582,2401.2,2401.1,1.3332]
[1751407715298,26.40582,2401.2,2401.1,2.1227]
[1751407716200,26.40582,2401.2,2401.1,0.7895]
[1751407716596,26.40582,2401.2,2401.1,1.62232]
[1751407717001,26.40582,2401.2,2401.1,3.08242]
[1751407717895,26.40582,2401.2,2401.1,0.7895]
[1751407718696,0.83282,2401.1,2401.0,0.7771]
[1751407718896,12.68982,2401.1,2401.0,0.7771]
[1751407720296,0.83303,2400.5,2399.7,2.08324]
[1751407720497,0.83303,2400.5,2400.0,0.8332]
[1751407720498,102.89460462,2400.5,2400.0,0.8332]
[1751407721101,102.89460462,2400.5,2399.9,1.5764]
[1751407721306,107.89460462,2400.5,2400.4,3.3e-07]
[1751407721492,107.89460462,2400.5,2399.3,4.68457462]
[1751407721493,64.94,2400.5,2399.3,4.68457462]
[1751407721698,0.83324,2399.9,2399.8,1.60538]
[1751407722009,26.47224,2399.9,2399.8,0.7721]
[1751407722201,37.497,2399.9,2399.4,0.8043]
[1751407722503,37.497,2399.9,2399.6,0.83332]
[1751407722703,0.83331,2399.7,2399.6,0.83332]
[1751407722907,0.83331,2399.7,2399.4,0.8043]
[1751407722908,25.662,2399.7,2399.4,0.8043]
[1751407723099,0.83338,2399.5,2399.4,1.63771]
[1751407723299,2.1188,2400.0,2399.6,0.83333]
[1751407723595,2.08337,2399.6,2399.1,0.83351]
[1751407723796,2.08363,2399.3,2398.8,0.83361]
[1751407724002,0.83362,2398.8,2398.7,2.2502]
[1751407724203,25.717,2398.8,2398.7,3.08386]
[1751407724400,11.861,2399.0,2398.9,0.83359]
[1751407724600,12.69455,2399.0,2398.8,0.8336]
[1751407724793,11.861,2399.0,2398.8,1.4275]
[1751407725199,11.861,2399.0,2398.9,0.83359]
[1751407725600,25.737,2399.1,2398.8,1.4275]
[1751407725601,0.83342,2399.4,2399.2,0.83347]
[1751407725801,37.6,2399.3,2399.2,0.83347]
[1751407726201,0.83343,2399.4,2399.2,0.83347]
[1751407726396,37.632,2399.3,2399.0,0.83353]
[1751407726601,37.632,2399.3,2398.8,1.4275]
[1751407726805,2.87562,2399.8,2398.8,1.4275]
[1751407727001,2.87562,2399.8,2398.9,2.08398]
[1751407727002,97.588,2399.7,2398.9,2.08398]
[1751407727199,26.59837,2399.6,2399.0,8.12386462]
[1751407727402,26.59836,2399.6,2399.1,2.0838]
[1751407727702,37.632,2399.5,2398.7,0.8227]
[1751407727902,0.83354,2399.1,2398.7,0.8227]
[1751407728102,0.83354,2399.1,2398.9,0.83356]
[1751407728407,25.776,2399.2,2399.1,0.83352]
[1751407728699,11.981,2399.2,2399.1,0.83352]
[1751407729508,11.981,2399.3,2399.2,0.83348]
[1751407729705,0.83335,2399.6,2399.5,0.83338]
[1751407730008,0.83339,2399.5,2399.4,0.8334]
[1751407730600,60.79332,2399.7,2399.2,2.0837]
[1751407730806,60.79332,2399.7,2399.6,0.83334]
[1751407731105,98.56432,2399.7,2399.6,0.83334]
[1751407731406,0.83343,2399.4,2399.3,0.83343]
[1751407731599,0.83345,2399.3,2399.2,0.83347]
[1751407731907,37.784,2399.3,2399.0,6.76844462]
[1751407732109,37.784,2399.3,2399.1,1.453]
[1751407732306,37.784,2399.3,2399.2,0.83348]
[1751407732505,0.83342,2399.4,2399.3,0.83345]
[1751407732700,38.61342,2399.4,2399.3,0.83345]
[1751407733105,37.78,2399.4,2399.3,0.83345]
[1751407733705,37.778,2399.4,2399.3,0.83345]
[1751407734309,0.83339,2399.5,2399.4,0.83341]
[1751407734509,38.60139,2399.5,2399.4,0.83341]
[1751407734703,37.768,2399.5,2399.4,0.83341]
[1751407734905,0.83336,2399.6,2399.5,0.83336]
[1751407735201,37.766,2399.6,2399.5,0.83336]
[1751407735402,37.779,2399.6,2399.3,5.47307462]
[1751407735700,37.779,2399.6,2399.3,6.81337462]
[1751407735904,12.81636,2399.6,2399.5,0.83338]
[1751407736102,38.60836,2399.6,2399.5,0.83338]
[1751407736500,59.96,2399.7,2399.6,0.83334]
[1751407736705,97.733,2399.7,2399.6,0.83334]
[1751407736903,59.96,2399.7,2399.6,0.83334]
[1751407737100,97.734,2399.7,2399.6,0.83334]
[1751407738408,97.728,2399.7,2399.6,6.88061462]
[1751407738598,59.96,2399.7,2399.6,6.88061462]
[1751407740005,59.96,2399.7,2399.6,11.88061462]
[1751407741107,11.984,2399.9,2399.8,0.83327]
[1751407741311,0.83314,2400.2,2400.1,0.83317]
[1751407741608,38.58614,2400.2,2400.1,0.83317]
[1751407741807,11.984,2400.2,2400.1,0.83317]
[1751407742111,37.75,2400.2,2400.1,0.83317]
[1751407743008,37.749,2400.2,2400.1,0.83317]
[1751407744105,37.749,2400.2,2399.9,8.96946462]
[1751407744106,0.83321,2400.0,2399.9,1.6304]
[1751407744306,0.83329,2399.8,2399.7,0.83328]
[1751407744708,0.83334,2399.7,2399.6,0.83332]
[1751407746314,0.83334,2399.6,2399.5,1.59965]
[1751407746611,0.83334,2399.7,2399.6,0.83333]
[1751407747209,0.83338,2399.5,2399.4,0.7962]
[1751407747414,27.83439,2399.6,2399.2,1.60586]
[1751407747712,0.83342,2399.4,2399.3,0.83342]
[1751407747912,26.58442,2399.4,2399.3,0.83342]
[1751407748311,25.751,2399.4,2399.3,0.83342]
[1751407748808,25.751,2399.4,2399.3,1.65412]
[1751407749209,25.751,2399.4,2399.3,2.42652]
[1751407750215,26.58434,2399.6,2399.5,0.83338]
[1751407750617,0.83339,2399.5,2399.4,0.83339]
[1751407752014,2.08317,2399.9,2399.5,0.83337]
[1751407752218,0.8334,2399.5,2399.4,0.83339]
[1751407752416,0.83341,2399.4,2399.3,2.42653]
[1751407752616,25.738,2399.6,2399.4,0.83339]
[1751407752617,0.8334,2399.5,2399.4,0.83339]
[1751407754113,27.96747,2399.6,2399.5,0.83338]
[1751407755319,27.1341,2399.6,2399.5,0.83338]
[1751407756017,11.984,2399.7,2399.6,0.83334]
[1751407756213,0.8271,2400.0,2399.9,0.83324]
[1751407756417,0.8271,2400.0,2399.8,0.83326]
[1751407756418,37.698,2400.0,2399.8,0.83326]
[1751407756618,37.698,2400.0,2399.9,0.83324]
[1751407758218,11.984,2400.0,2399.9,0.83324]
[1751407758419,37.713,2400.0,2399.9,0.83324]
[1751407761826,37.704,2400.0,2399.9,3.27654501]
[1751407762526,37.695,2400.0,2399.9,3.27654501]
[1751407762927,0.7747,2400.3,2399.9,3.27654501]
[1751407763120,11.961,2400.0,2399.9,3.27654501]
[1751407763321,37.664,2400.0,2399.9,3.27654501]
[1751407763524,0.83314,2400.2,2400.1,0.83317]
[1751407763722,0.83319,2400.1,2400.0,0.83317]
[1751407764427,2.22969,2400.1,2400.0,0.83317]
[1751407764927,0.83321,2400.0,2399.9,3.27651501]
[1751407765228,26.52621,2400.0,2399.9,0.83321]
[1751407765723,0.83324,2399.9,2399.8,0.7897]
[1751407765931,0.83334,2399.7,2399.2,2.08372]
[1751407766125,0.83335,2399.6,2399.5,0.83335]
[1751407766426,1.3626,2399.6,2399.3,2.44330501]
[1751407766729,26.5284,2399.5,2399.3,3.27674501]
[1751407767029,0.83341,2399.4,2399.3,2.44330501]
[1751407767728,0.83341,2399.4,2399.3,0.83343]
[1751407768129,26.5284,2399.5,2399.4,0.83341]
[1751407770225,25.695,2399.5,2399.3,0.83342]
[1751407770428,0.83342,2399.4,2399.3,0.83342]
[1751407770732,26.52841,2399.5,2399.3,0.83342]
[1751407771429,26.52841,2399.5,2399.1,3.644]
[1751407771627,26.52841,2399.5,2399.4,0.83341]
[1751407772439,25.695,2399.5,2399.1,3.644]
[1751407772734,26.5284,2399.5,2399.4,0.83341]
[1751407773230,25.695,2399.5,2399.4,0.83341]
[1751407779334,2.08301,2400.1,2399.5,0.83338]
[1751407779531,0.83326,2399.9,2399.8,0.83327]
[1751407780136,39.80073,2400.0,2399.9,0.83324]
[1751407780335,0.83326,2399.9,2399.8,0.83326]
[1751407780535,27.94034,2399.9,2399.8,0.83326]
[1751407781340,27.1071,2399.9,2399.8,0.83326]
[1751407781838,11.962,2400.0,2399.9,0.83324]
[1751407782141,11.962,2400.0,2399.9,5.52693347]
[1751407783744,11.962,2400.0,2399.9,0.83324]
[1751407785644,12.79521,2400.0,2399.9,0.83324]
[1751407785844,11.962,2400.0,2399.9,0.83324]
[1751407786239,0.83324,2399.9,2399.6,0.7889]
[1751407786434,25.628,2399.8,2399.7,0.83331]
[1751407787741,25.628,2399.8,2399.7,3.27668811]
[1751407788142,11.961,2400.0,2399.9,0.83324]
[1751407788442,37.612,2400.0,2399.9,0.83324]
[1751407788649,11.961,2400.0,2399.9,3.27661811]
[1751407788943,12.79421,2400.0,2399.9,3.27661811]
[1751407789347,11.961,2400.0,2399.9,3.27661811]
[1751407793747,71.903,2400.4,2400.2,0.83311]
[1751407793948,0.83311,2400.3,2400.2,3.27648811]
[1751407794246,11.919,2400.5,2400.4,0.83307]
[1751407794545,37.562,2400.5,2400.4,0.83307]
[1751407794747,11.919,2400.5,2400.4,0.83307]
[1751407794941,11.919,2400.5,2400.4,3.27644811]
[1751407795138,59.979,2400.8,2400.4,2.44337811]
[1751407795342,71.898,2400.8,2400.7,3.27633811]
[1751407795540,0.83287,2401.0,2400.8,0.83289]
[1751407795743,0.83284,2401.1,2400.7,2.44337811]
[1751407796241,0.83286,2401.0,2400.8,0.83293]
[1751407796447,25.656,2401.1,2400.9,2.44337811]
[1751407796747,11.918,2401.2,2401.1,0.83281]
[1751407796948,37.569,2401.2,2401.1,3.27618811]
[1751407797746,37.573,2401.2,2401.1,3.27618811]
[1751407798150,11.918,2401.2,2401.1,3.27618811]
[1751407798450,38.40079,2401.2,2401.1,2.44337811]
[1751407798652,42.09336811,2401.2,2400.6,2.44337811]
[1751407798846,2.44337811,2400.7,2400.1,2.44337811]
[1751407799043,2.0817,2401.6,2400.5,4.52594811]
[1751407799244,11.918,2401.5,2401.1,2.44337811]
[1751407799447,0.83279,2401.2,2400.9,3.27624811]
[1751407799751,0.83279,2401.2,2401.0,0.83285]
[1751407799945,38.56379,2401.2,2401.0,0.83285]
[1751407800150,0.83283,2401.1,2400.9,3.27625811]
[1751407800453,38.56381,2401.2,2400.9,3.27625811]
[1751407800652,1.332,2401.1,2401.0,0.83286]
[1751407800951,1.332,2401.1,2401.0,9.146356]
[1751407802450,37.731,2401.2,2401.1,0.83282]
[1751407802649,37.731,2401.2,2401.1,3.27619811]
[1751407803251,38.56379,2401.2,2401.1,2.44337811]
[1751407803553,0.83282,2401.1,2401.0,8.313496]
[1751407803748,2.21012,2401.1,2401.0,8.313496]
[1751407804654,2.97782,2401.1,2401.0,8.313496]
[1751407805951,5.42119811,2401.1,2401.0,8.313496]
[1751407806148,2.97782,2401.1,2401.0,8.313496]
[1751407808846,3.73272,2401.1,2401.0,8.313496]
[1751407809045,2.145,2401.1,2401.0,9.146356]
[1751407809255,37.674,2401.1,2401.0,9.146356]
[1751407809549,37.674,2401.1,2401.0,9.896756]
[1751407810555,11.915,2401.1,2401.0,9.896756]
[1751407811355,37.667,2401.1,2401.0,9.896756]
[1751407812260,11.915,2401.1,2401.0,9.896756]
[1751407812564,37.657,2401.1,2401.0,9.896756]
[1751407813062,0.83278,2401.3,2401.1,0.83281]
[1751407813258,0.83275,2401.4,2401.2,2.44337811]
[1751407813457,12.74775,2401.3,2401.2,3.27615811]
[1751407813658,38.48175,2401.3,2401.2,2.44337811]
[1751407814051,38.48175,2401.3,2401.2,3.27616811]
[1751407814257,0.83275,2401.3,2401.2,3.27616811]
[1751407814564,11.914,2401.3,2401.2,3.27616811]
[1751407815258,11.914,2401.3,2401.2,11.58966411]
[1751407816363,11.914,2401.3,2401.2,12.30246411]
[1751407816564,0.7475,2401.8,2401.6,0.83262]
[1751407816863,0.7475,2401.8,2401.6,0.83265]
[1751407816864,37.645,2401.7,2401.6,0.83265]
[1751407817466,37.636,2401.7,2401.6,0.83265]
[1751407817666,38.46862,2401.7,2401.5,1.61396]
[1751407817968,38.46862,2401.7,2401.6,2.44337811]
[1751407819073,37.636,2401.7,2401.6,3.27602811]
[1751407819369,38.46862,2401.7,2401.6,2.44337811]
[1751407820372,38.46862,2401.7,2401.6,10.75687411]
[1751407823764,11.914,2401.7,2401.6,11.58952411]
[1751407823971,37.613,2401.7,2401.6,11.58952411]
[1751407824170,38.44562,2401.7,2401.6,11.58952411]
[1751407825370,37.613,2401.7,2401.6,11.58952411]
[1751407825572,37.603,2401.7,2401.6,12.94412411]
[1751407826572,11.914,2401.7,2401.6,12.94412411]
[1751407826770,37.601,2401.7,2401.6,12.94412411]
[1751407826978,60.78652,2402.0,2401.8,0.83258]
[1751407827169,25.683,2401.9,2401.8,0.83258]
[1751407827369,25.683,2401.9,2401.8,3.27595811]
[1751407827667,71.911,2402.0,2401.9,0.83255]
[1751407827868,97.593,2402.0,2401.9,1.54605]
[1751407829176,71.911,2402.0,2401.9,1.54605]
[1751407829377,97.591,2402.0,2401.9,1.54605]
[1751407829674,0.83249,2402.1,2401.9,1.54605]
[1751407829874,26.50049,2402.1,2402.0,2.44337811]
[1751407830177,26.50049,2402.1,2402.0,10.75687411]
[1751407830569,26.50049,2402.1,2402.0,8.313496]
[1751407831470,27.94179,2402.1,2402.0,8.313496]
[1751407832072,28.77069,2402.1,2402.0,8.313496]
[1751407833980,28.77069,2402.1,2402.0,10.75687411]
[1751407835075,27.94179,2402.1,2402.0,10.75687411]
[1751407835469,27.94179,2402.1,2402.0,8.313496]
[1751407836068,27.94179,2402.1,2402.0,7.087316]
[1751407836272,32.94179,2402.1,2402.0,6.118956]
[1751407836467,32.94179,2402.1,2402.0,4.006656]
[1751407836673,32.94179,2402.1,2402.0,0.977776]
[1751407836979,32.94179,2402.1,2402.0,6e-06]
[1751407838370,35.38516811,2402.1,2402.0,6e-06]